Workbook

Sheet 支出
A1: 活動預算：[活動名稱]
A2: > 支出
F4: 預估 | G4: 實額
A5: 總支出 | F5: =SUM(B12,B20,B26,B33,F12,F20,F25) -> $114,500.00 | G5: =SUM(C12,C20,C26,C33,G12,G20,G25) -> $39,500.00
A7: 場地 | B7: 預估 | C7: 實額 | E7: 餐點 | F7: 預估 | G7: 實額
A8: 房間與大廳費用 | B8: $50,000.00 | C8: $25,000.00 | E8: 食物
A9: 現場工作人員 | B9: $40,000.00 | C9: $5,000.00 | E9: 飲料
A10: 設備 | E10: 桌布
A11: 桌椅 | E11: 工作人員與小費
A12: 合計： | B12: =SUBTOTAL(109,表格1[預估]) -> $90,000.00 | C12: =SUBTOTAL(109,表格1[實額]) -> $30,000.00 | E12: 合計： | F12: =SUBTOTAL(109,表格5[預估]) -> $0.00 | G12: =SUBTOTAL(109,表格5[實額]) -> $0.00
A14: 佈置 | B14: 預估 | C14: 實額 | E14: 節目單 | F14: 預估 | G14: 實額
A15: 花 | B15: $20,000.00 | C15: $5,000.00 | E15: 表演人員
A16: 蠟燭 | E16: 演講人
A17: 燈光 | E17: 旅行
A18: 氣球 | E18: 飯店
A19: 紙類 | E19: 其他：
A20: 合計： | B20: =SUBTOTAL(109,表格2[預估]) -> $20,000.00 | C20: =SUBTOTAL(109,表格2[實額]) -> $5,000.00 | E20: 合計： | F20: =SUBTOTAL(109,表格6[預估]) -> $0.00 | G20: =SUBTOTAL(109,表格6[實額]) -> $0.00
A22: 宣傳 | B22: 預估 | C22: 實額 | E22: 獎品 | F22: 預估 | G22: 實額
A23: 美編 | B23: $4,500.00 | C23: $4,500.00 | E23: 彩帶/徽章/紀念品
A24: 影印/列印 | E24: 禮物
A25: 郵費 | E25: 合計： | F25: =SUBTOTAL(109,表格7[預估]) -> $0.00
A26: 合計： | B26: =SUBTOTAL(109,表格3[預估]) -> $4,500.00 | C26: =SUBTOTAL(109,表格3[實額]) -> $4,500.00
A28: 雜項 | B28: 預估 | C28: 實額
A29: 電話
A30: 交通
A31: 文具
A32: 傳真服務
A33: 合計： | B33: =SUBTOTAL(109,表格4[預估]) -> $0.00 | C33: =SUBTOTAL(109,表格4[實額]) -> $0.00

Sheet 收入
A1: =支出!A1 -> 活動預算：[活動名稱]
A2: > 收入
E4: 預估 | F4: 實額
A5: 總收入 | E5: =SUM(E12,E19,E26,E34) -> $193,600.00 | F5: =SUM(F12,F19,F26,F34) -> $183,100.00
A7: 入場費
A8: 預估 | B8: 實額 | E8: 預估 | F8: 實額
A9: 300 | B9: 278 | C9: 成人 @ | D9: $500.00 | E9: =A9*D9 -> $150,000.00 | F9: =B9*D9 -> $139,000.00
A10: 197 | B10: 195 | C10: 孩童 @ | D10: $200.00 | E10: =A10*D10 -> $39,400.00 | F10: =B10*D10 -> $39,000.00
A11: 42 | B11: 51 | C11: 其他： | D11: $100.00 | E11: =A11*D11 -> $4,200.00 | F11: =B11*D11 -> $5,100.00
E12: =SUM(E9:E11) -> $193,600.00 | F12: =SUM(F9:F11) -> $183,100.00
A14: 節目單中的廣告
A15: 預估 | B15: 實額 | E15: 預估 | F15: 實額
C16: 封面 @ | E16: =A16*D16 -> $0.00 | F16: =B16*D16 -> $0.00
C17: 半版 @ | E17: =A17*D17 -> $0.00 | F17: =B17*D17 -> $0.00
C18: 四分之一版 @ | E18: =A18*D18 -> $0.00 | F18: =B18*D18 -> $0.00
E19: =SUM(E16:E18) -> $0.00 | F19: =SUM(F16:F18) -> $0.00
A21: 參展者/廠商
A22: 預估 | B22: 實額 | E22: 預估 | F22: 實額
C23: 大型攤位 @ | E23: =A23*D23 -> $0.00 | F23: =B23*D23 -> $0.00
C24: 中型攤位 @ | E24: =A24*D24 -> $0.00 | F24: =B24*D24 -> $0.00
C25: 小型攤位 @ | E25: =A25*D25 -> $0.00 | F25: =B25*D25 -> $0.00
E26: =SUM(E23:E25) -> $0.00 | F26: =SUM(F23:F25) -> $0.00
A28: 物品銷售
A29: 預估 | B29: 實額 | E29: 預估 | F29: 實額
C30: 項目 @ | E30: =A30*D30 -> $0.00 | F30: =B30*D30 -> $0.00
C31: 項目 @ | E31: =A31*D31 -> $0.00 | F31: =B31*D31 -> $0.00
C32: 項目 @ | E32: =A32*D32 -> $0.00 | F32: =B32*D32 -> $0.00
C33: 項目 @ | E33: =A33*D33 -> $0.00 | F33: =B33*D33 -> $0.00
E34: =SUM(E30:E33) -> $0.00 | F34: =SUM(F30:F33) -> $0.00

Sheet 摘要
A1: =支出!A1 -> 活動預算：[活動名稱]
A2: > 盈餘 - 損失摘要
B4: 預估 | C4: 實額
A5: 總收入 | B5: =收入!E5 -> $193,600.00 | C5: =收入!F5 -> $183,100.00
A6: 總支出 | B6: =支出!F5 -> $114,500.00 | C6: =支出!G5 -> $39,500.00
A7: 總盈餘 (或損失) | B7: =B5-B6 -> $79,100.00 | C7: =C5-C6 -> $143,600.00
